[Event "3rd Memorial Warakomska 2019"]
[Site "Suwalki"]
[Date "2019.08.06"]
[Round "2.22"]
[White "Matviishen, Viktor"]
[Black "Reza, Wojciech"]
[Result "1-0"]
[ECO "B51"]
[WhiteElo "2495"]
[BlackElo "2261"]
[Annotator "ChessBase"]
[PlyCount "73"]
[EventDate "2019.08.05"]
[EventType "swiss"]
[EventCountry "POL"]
[SourceTitle "playchess.com"]
[Source "ChessBase"]
[SourceQuality "1"]
[TimeControl "40/5400+30:1800+30"]

1. e4 {[%emt 0:00:00]} c5 {[%emt 0:02:53]} 2. Nf3 {[%emt 0:00:00]} d6 {[%emt 0:05:34]} 3. Bb5+ {[%emt 0:00:41]} Nd7 {[%emt 0:00:07]} 4. d4 {[%emt 0:00:59]} cxd4 5. Qxd4 {[%emt 0:00:05]} a6 {[%emt 0:01:04]} 6. Bxd7+ {[%emt 0:00:34]} Bxd7 {[%emt 0:00:05]} 7. O-O {[%emt 0:00:49]} e5 {[%emt 0:00:25]} 8. Qd3 {[%emt 0:00:08]} h6 {[%emt 0:00:05]} 9. a4 {[%emt 0:26:01]} Nf6 {[%emt 0:04:31]} 10. c4 {[%emt 0:09:34]} Be7 {[%emt 0:01:43]} 11. Nc3 {[%emt 0:00:12]} O-O {[%emt 0:00:57]} 12. Rd1 {[%emt 0:08:35]} Qa5 {[%emt 0:17:58]} 13. Bd2 {[%emt 0:06:39]} Qc7 {[%emt 0:02:13]} 14. b3 {[%emt 0:00:06]} b6 {[%emt 0:14:05]} 15. Nh4 {[%emt 0:03:25]} Bg4 {[%emt 0:30:27]} 16. f3 {[%emt 0:06:32]} Be6 {[%emt 0:00:13]} 17. Nf5 {[%emt 0:00:03]} Bxf5 {[%emt 0:07:36]} 18. exf5 {[%emt 0:00:04]} Qb7 {[%emt 0:02:32]} 19. Be3 {[%emt 0:01:18]} Rac8 {[%emt 0:01:16]} 20. Nd5 {[%emt 0:05:24]} Rc6 {[%emt 0:00:29]} 21. Nxf6+ {[%emt 0:02:09]} Bxf6 {[%emt 0:00:06]} 22. Qe4 {[%emt 0:00:19]} Qc7 {[%emt 0:02:01]} 23. Rd5 {[%emt 0:00:19]} Rb8 {[%emt 0:00:31]} 24. Rad1 {[%emt 0:00:46]} Be7 {[%emt 0:01:56]} 25. f4 {[%emt 0:03:49]} Bf6 {[%emt 0:02:58]} 26. Qd3 {[%emt 0:05:54]} Qb7 {[%emt 0:00:44]} 27. fxe5 {[%emt 0:00:45]} dxe5 {[%emt 0:00:27]} 28. Rd7 {[%emt 0:03:03]} Qa8 {[%emt 0:00:25]} 29. Qd5 {[%emt 0:00:28]} Rf8 {[%emt 0:00:15]} 30. a5 {[%emt 0:02:18]} bxa5 {[%emt 0:00:20]} 31. Bc5 {[%emt 0:00:04]} Re8 {[%emt 0:00:57]} 32. Qxf7+ {[%emt 0:00:34]} Kh8 {[%emt 0:00:04]} 33. R1d3 {[%emt 0:07:51]} Rxc5 {[%emt 0:00:59]} 34. Rh3 {[%emt 0:00:03]} Be7 {[%emt 0:00:30]} 35. f6 {[%emt 0:00:15]} Rg8 {[%emt 0:00:32]} 36. fxg7+ {[%emt 0:00:15]} Kh7 {[%emt 0:00:25]} 37. Qf5+ {[%emt 0:00:05]} 1-0

[Event "3rd Memorial Warakomska 2019"]
[Site "Suwalki"]
[Date "2019.08.06"]
[Round "2.23"]
[White "Czerw, Dawid"]
[Black "Pavlov, Sergey"]
[Result "0-1"]
[ECO "D31"]
[WhiteElo "2326"]
[BlackElo "2486"]
[Annotator "ChessBase"]
[PlyCount "40"]
[EventDate "2019.08.05"]
[EventType "swiss"]
[EventCountry "POL"]
[SourceTitle "playchess.com"]
[Source "ChessBase"]
[SourceQuality "1"]
[TimeControl "40/5400+30:1800+30"]

1. d4 {[%emt 0:00:00]} d5 {[%emt 0:00:00]} 2. c4 {[%emt 0:00:14]} e6 {[%emt 0:00:24]} 3. Nc3 {[%emt 0:00:16]} Bb4 {[%emt 0:00:42]} 4. Nf3 {[%emt 0:01:15]} dxc4 {[%emt 0:00:42]} 5. e4 {[%emt 0:12:14]} b5 {[%emt 0:03:44]} 6. a4 {[%emt 0:02:06]} c6 {[%emt 0:00:42]} 7. Bd2 {[%emt 0:10:00]} a5 {[%emt 0:02:22]} 8. e5 {[%emt 0:13:52]} Ne7 {[%emt 0:08:51]} 9. axb5 {[%emt 0:06:20]} Bxc3 {[%emt 0:01:16]} 10. bxc3 {[%emt 0:00:24]} cxb5 {[%emt 0:01:18]} 11. Ng5 {[%emt 0:07:18]} Bb7 {[%emt 0:09:53]} 12. Qb1 {[%emt 0:13:09]} Qd5 {[%emt 0:19:30]} 13. f3 {[%emt 0:02:26]} Nd7 {[%emt 0:11:29]} 14. Ne4 {[%emt 0:06:05]} O-O {[%emt 0:01:10]} 15. g3 {[%emt 0:07:52]} f5 {[%emt 0:07:46]} 16. exf6 {[%emt 0:00:45]} Nxf6 {[%emt 0:00:25]} 17. Bg2 {[%emt 0:01:40]} e5 {[%emt 0:04:13]} 18. dxe5 {[%emt 0:05:24]} Nxe4 {[%emt 0:00:48]} 19. fxe4 {[%emt 0:00:38]} Qc5 {[%emt 0:04:25]} 20. Kd1 {[%emt 0:05:28]} Qf2 {[%emt 0:05:22]} 0-1

[Event "3rd Memorial Warakomska 2019"]
[Site "Suwalki"]
[Date "2019.08.06"]
[Round "2.24"]
[White "Harsha Bharathakoti"]
[Black "Maj, Pawel"]
[Result "1-0"]
[ECO "E20"]
[WhiteElo "2486"]
[BlackElo "2127"]
[Annotator "ChessBase"]
[PlyCount "90"]
[EventDate "2019.08.05"]
[EventType "swiss"]
[EventCountry "POL"]
[SourceTitle "playchess.com"]
[Source "ChessBase"]
[SourceQuality "1"]
[TimeControl "40/5400+30:1800+30"]

1. d4 {[%emt 0:02:07]} Nf6 {[%emt 0:00:00]} 2. c4 {[%emt 0:00:57]} e6 {[%emt 0:00:08]} 3. Nc3 {[%emt 0:00:43]} Bb4 {[%emt 0:00:15]} 4. Bd2 {[%emt 0:02:59]} d5 {[%emt 0:01:49]} 5. e3 {[%emt 0:00:04]} O-O {[%emt 0:00:56]} 6. Nf3 {[%emt 0:00:03]} c5 {[%emt 0:04:51]} 7. a3 {[%emt 0:04:37]} Bxc3 {[%emt 0:01:15]} 8. Bxc3 {[%emt 0:00:17]} Ne4 {[%emt 0:02:51]} 9. Rc1 {[%emt 0:00:05]} Nxc3 {[%emt 0:03:48]} 10. Rxc3 {[%emt 0:00:04]} cxd4 {[%emt 0:02:36]} 11. Qxd4 {[%emt 0:17:13]} Nc6 {[%emt 0:04:49]} 12. Qd2 {[%emt 0:20:34]} dxc4 {[%emt 0:04:28]} 13. Bxc4 {[%emt 0:00:37]} Qf6 {[%emt 0:00:50]} 14. O-O {[%emt 0:01:43]} e5 {[%emt 0:13:56]} 15. Bb5 {[%emt 0:10:38]} Rd8 {[%emt 0:02:11]} 16. Qc1 {[%emt 0:01:38]} Ne7 {[%emt 0:09:14]} 17. Rc5 {[%emt 0:17:40]} a6 {[%emt 0:06:07]} 18. Be2 {[%emt 0:08:27]} Bg4 {[%emt 0:12:40]} 19. h3 {[%emt 0:01:17]} b6 {[%emt 0:01:20]} 20. Rc7 {[%emt 0:00:04]} Be6 {[%emt 0:01:24]} 21. Rd1 {[%emt 0:01:09]} Nd5 {[%emt 0:02:07]} 22. Rc6 {[%emt 0:00:24]} b5 {[%emt 0:07:48]} 23. Qc5 {[%emt 0:00:39]} e4 {[%emt 0:03:49]} 24. Nd4 {[%emt 0:00:36]} Ne7 {[%emt 0:02:09]} 25. Rc7 {[%emt 0:03:27]} Ng6 {[%emt 0:03:03]} 26. Qc6 {[%emt 0:01:54]} Bd5 {[%emt 0:04:50]} 27. Qxf6 {[%emt 0:00:43]} gxf6 {[%emt 0:00:04]} 28. Rdc1 {[%emt 0:00:20]} Ne5 {[%emt 0:00:44]} 29. b3 {[%emt 0:00:41]} Kf8 {[%emt 0:01:36]} 30. R1c3 {[%emt 0:01:07]} Rd7 {[%emt 0:00:33]} 31. Bg4 {[%emt 0:00:41]} Rxc7 {[%emt 0:01:19]} 32. Rxc7 {[%emt 0:00:03]} Rb8 {[%emt 0:01:43]} 33. Bf5 {[%emt 0:01:22]} h6 {[%emt 0:00:12]} 34. Rc5 {[%emt 0:00:33]} Rd8 {[%emt 0:00:12]} 35. Kf1 {[%emt 0:00:48]} Ke7 {[%emt 0:00:26]} 36. Rc7+ {[%emt 0:00:17]} Kd6 {[%emt 0:00:46]} 37. Ra7 {[%emt 0:00:21]} Ra8 {[%emt 0:00:27]} 38. Rxa8 {[%emt 0:00:04]} Bxa8 {[%emt 0:00:04]} 39. Bc8 {[%emt 0:00:22]} Kc5 {[%emt 0:01:21]} 40. Bxa6 {[%emt 0:00:00]} b4 {[%emt 0:00:00]} 41. axb4+ {[%emt 0:07:28]} Kxb4 {[%emt 0:01:07]} 42. Bc4 {[%emt 0:07:48]} Nxc4 {[%emt 0:00:43]} 43. bxc4 {[%emt 0:01:28]} Kxc4 {[%emt 0:00:05]} 44. Nf5 {[%emt 0:00:02]} Kd5 {[%emt 0:02:41]} 45. Nxh6 {[%emt 0:00:15]} Ke6 {[%emt 0:00:07]} 1-0

[Event "3rd Memorial Warakomska 2019"]
[Site "Suwalki"]
[Date "2019.08.06"]
[Round "2.25"]
[White "Molenda, Marcin"]
[Black "Shpanko, Nadiia"]
[Result "1-0"]
[ECO "D06"]
[WhiteElo "2387"]
[BlackElo "2132"]
[Annotator "NA"]
[PlyCount "57"]
[EventDate "2019.08.05"]
[EventType "swiss"]
[EventCountry "POL"]
[SourceTitle "playchess.com"]
[Source "ChessBase"]
[SourceQuality "1"]
[TimeControl "40/5400+30:1800+30"]

1. d4 {[%emt 0:00:00]} d5 {[%emt 0:00:00]} 2. c4 {[%emt 0:00:03]} Nf6 {[%emt 0:00:00]} 3. cxd5 {[%emt 0:01:27]} Nxd5 {[%emt 0:00:31]} 4. Nf3 {[%emt 0:01:36]} g6 {[%emt 0:02:24]} 5. g3 {[%emt 0:00:05]} Bg7 {[%emt 0:00:16]} 6. Bg2 {[%emt 0:00:08]} c6 {[%emt 0:00:43]} 7. O-O {[%emt 0:00:40]} O-O {[%emt 0:00:39]} 8. e4 {[%emt 0:11:20]} Nc7 {[%emt 0:03:45]} 9. Nc3 {[%emt 0:03:52]} Bg4 {[%emt 0:08:12]} 10. Be3 {[%emt 0:00:06]} e5 {[%emt 0:02:56]} 11. dxe5 {[%emt 0:01:57]} Nd7 {[%emt 0:01:11]} 12. Qb3 {[%emt 0:05:07]} Qc8 {[%emt 0:15:12]} 13. Rac1 {[%emt 0:11:59]} h6 {[%emt 0:05:53]} 14. h3 {[%emt 0:04:39]} Be6 {[%emt 0:09:11]} 15. Qc2 {[%emt 0:06:06]} Re8 {[%emt 0:00:29]} 16. Kh2 {[%emt 0:02:43]} Na6 {[%emt 0:07:18]} 17. b3 {[%emt 0:05:54]} Qb8 {[%emt 0:05:17]} 18. Nd4 {[%emt 0:01:35]} Nxe5 {[%emt 0:03:04]} 19. f4 {[%emt 0:10:22]} Nb4 {[%emt 0:09:41]} 20. Qe2 {[%emt 0:04:40]} Ned3 {[%emt 0:01:00]} 21. Rcd1 {[%emt 0:00:35]} c5 {[%emt 0:06:01]} 22. Nxe6 {[%emt 0:01:12]} Rxe6 {[%emt 0:00:11]} 23. Rxd3 {[%emt 0:03:01]} Nxd3 {[%emt 0:00:07]} 24. Qxd3 {[%emt 0:00:04]} Qd8 {[%emt 0:01:14]} 25. Nd5 {[%emt 0:00:20]} Qa5 {[%emt 0:00:46]} 26. f5 {[%emt 0:00:31]} Ree8 {[%emt 0:00:14]} 27. fxg6 {[%emt 0:00:41]} fxg6 {[%emt 0:00:05]} 28. Nf6+ {[%emt 0:00:27]} Bxf6 {[%emt 0:00:23]} 29. Rxf6 {[%emt 0:00:05]} 1-0

[Event "3rd Memorial Warakomska 2019"]
[Site "Suwalki"]
[Date "2019.08.06"]
[Round "2.26"]
[White "Lis, Mateusz"]
[Black "Karavade, Eesha"]
[Result "1/2-1/2"]
[ECO "B90"]
[WhiteElo "2007"]
[BlackElo "2355"]
[Annotator "NA"]
[PlyCount "59"]
[EventDate "2019.08.05"]
[EventType "swiss"]
[EventCountry "POL"]
[SourceTitle "playchess.com"]
[Source "ChessBase"]
[SourceQuality "1"]
[TimeControl "40/5400+30:1800+30"]

1. e4 {[%emt 0:00:00]} c5 {[%emt 0:00:00]} 2. Nf3 {[%emt 0:00:00]} d6 {[%emt 0:00:00]} 3. d4 {[%emt 0:00:00]} cxd4 {[%emt 0:00:05]} 4. Nxd4 {[%emt 0:00:00]} Nf6 {[%emt 0:00:08]} 5. Nc3 {[%emt 0:00:01]} a6 {[%emt 0:00:08]} 6. Be3 {[%emt 0:00:21]} e5 {[%emt 0:00:08]} 7. Nf3 {[%emt 0:00:04]} Be7 {[%emt 0:00:42]} 8. Bc4 {[%emt 0:00:14]} O-O {[%emt 0:00:43]} 9. O-O {[%emt 0:00:26]} Be6 {[%emt 0:00:15]} 10. Bb3 {[%emt 0:00:16]} b5 {[%emt 0:00:08]} 11. Qd3 {[%emt 0:10:07]} Qc7 {[%emt 0:02:55]} 12. Rfd1 {[%emt 0:13:44]} Rc8 {[%emt 0:07:20]} 13. Rac1 {[%emt 0:04:46]} Bc4 {[%emt 0:04:47]} 14. Bxc4 {[%emt 0:01:15]} Qxc4 {[%emt 0:00:04]} 15. Nd2 {[%emt 0:05:46]} Qxd3 {[%emt 0:04:21]} 16. cxd3 {[%emt 0:00:05]} Nbd7 {[%emt 0:00:05]} 17. d4 {[%emt 0:02:08]} b4 {[%emt 0:07:25]} 18. Na4 {[%emt 0:00:42]} d5 {[%emt 0:06:24]} 19. dxe5 {[%emt 0:25:32]} Nxe5 {[%emt 0:00:06]} 20. Nb6 {[%emt 0:00:19]} Rxc1 {[%emt 0:00:08]} 21. Rxc1 {[%emt 0:00:08]} Rd8 {[%emt 0:00:05]} 22. exd5 {[%emt 0:01:05]} Nxd5 {[%emt 0:00:21]} 23. Nxd5 {[%emt 0:00:08]} Rxd5 {[%emt 0:00:05]} 24. Rc8+ {[%emt 0:01:12]} Rd8 {[%emt 0:00:20]} 25. Rxd8+ {[%emt 0:01:41]} Bxd8 {[%emt 0:00:02]} 26. Kf1 {[%emt 0:01:09]} Kf8 {[%emt 0:00:15]} 27. Ke2 {[%emt 0:00:15]} Ke8 {[%emt 0:04:25]} 28. Bd4 {[%emt 0:01:00]} Bc7 {[%emt 0:00:24]} 29. h3 {[%emt 0:06:19]} f6 {[%emt 0:00:31]} 30. f4 {[%emt 0:10:45]} 1/2-1/2

[Event "3rd Memorial Warakomska 2019"]
[Site "Suwalki"]
[Date "2019.08.06"]
[Round "2.27"]
[White "Punin, Andrii"]
[Black "Jankowiak, Tomasz"]
[Result "1-0"]
[ECO "A20"]
[WhiteElo "2305"]
[BlackElo "2104"]
[Annotator "NA"]
[PlyCount "81"]
[EventDate "2019.08.05"]
[EventType "swiss"]
[EventCountry "POL"]
[SourceTitle "playchess.com"]
[Source "ChessBase"]
[SourceQuality "1"]
[TimeControl "40/5400+30:1800+30"]

1. c4 {[%emt 0:00:00]} e5 {[%emt 0:00:00]} 2. g3 {[%emt 0:00:00]} Nf6 {[%emt 0:00:00]} 3. Bg2 {[%emt 0:00:00]} d5 {[%emt 0:00:05]} 4. cxd5 {[%emt 0:00:00]} Nxd5 {[%emt 0:00:05]} 5. Nf3 {[%emt 0:00:04]} Nc6 {[%emt 0:00:16]} 6. O-O {[%emt 0:00:10]} Be7 {[%emt 0:07:18]} 7. d4 {[%emt 0:00:10]} exd4 {[%emt 0:30:05]} 8. Nxd4 {[%emt 0:00:11]} Nxd4 {[%emt 0:00:06]} 9. Qxd4 {[%emt 0:00:09]} Nf6 {[%emt 0:00:07]} 10. Qa4+ {[%emt 0:00:14]} c6 {[%emt 0:00:57]} 11. Nc3 {[%emt 0:00:17]} O-O {[%emt 0:00:30]} 12. Bf4 {[%emt 0:01:01]} Be6 {[%emt 0:01:29]} 13. Rad1 {[%emt 0:02:55]} Qb6 {[%emt 0:02:05]} 14. Qc2 {[%emt 0:00:45]} Rad8 {[%emt 0:02:08]} 15. e4 {[%emt 0:05:11]} Rxd1 {[%emt 0:02:59]} 16. Rxd1 {[%emt 0:00:10]} Rd8 {[%emt 0:00:32]} 17. Rxd8+ {[%emt 0:01:57]} Qxd8 {[%emt 0:01:47]} 18. h3 {[%emt 0:06:28]} Nd7 {[%emt 0:09:25]} 19. Bf1 {[%emt 0:10:35]} Nb6 {[%emt 0:13:07]} 20. b3 {[%emt 0:02:48]} h5 {[%emt 0:02:17]} 21. Ne2 {[%emt 0:07:46]} h4 {[%emt 0:02:35]} 22. g4 {[%emt 0:04:27]} Nd7 {[%emt 0:06:33]} 23. Be3 {[%emt 0:04:26]} Qa5 {[%emt 0:03:55]} 24. f4 {[%emt 0:02:14]} Bc5 {[%emt 0:01:02]} 25. Kf2 {[%emt 0:06:07]} Bxe3+ {[%emt 0:01:22]} 26. Kxe3 {[%emt 0:00:09]} f6 {[%emt 0:03:16]} 27. Qd2 {[%emt 0:05:00]} Qb6+ {[%emt 0:00:39]} 28. Kf3 {[%emt 0:03:15]} a5 {[%emt 0:02:23]} 29. Nd4 {[%emt 0:10:34]} Bf7 {[%emt 0:00:15]} 30. Nf5 {[%emt 0:01:10]} Qg1 {[%emt 0:00:20]} 31. Bg2 {[%emt 0:03:00]} Nc5 {[%emt 0:01:52]} 32. Qd8+ {[%emt 0:02:40]} Kh7 {[%emt 0:00:02]} 33. Qf8 {[%emt 0:00:11]} Qd1+ {[%emt 0:02:08]} 34. Kf2 {[%emt 0:00:25]} Nxe4+ {[%emt 0:02:44]} 35. Bxe4 {[%emt 0:00:11]} Qd2+ {[%emt 0:00:05]} 36. Kf3 {[%emt 0:02:27]} Qd1+ {[%emt 0:00:25]} 37. Ke3 {[%emt 0:00:15]} Qc1+ {[%emt 0:02:05]} 38. Ke2 {[%emt 0:01:08]} Qb2+ {[%emt 0:00:46]} 39. Kd3 {[%emt 0:01:26]} Qb1+ {[%emt 0:00:14]} 40. Kd2 {[%emt 0:00:00]} Qb2+ {[%emt 0:00:00]} 41. Bc2 {[%emt 0:00:28]} 1-0

[Event "3rd Memorial Warakomska 2019"]
[Site "Suwalki"]
[Date "2019.08.06"]
[Round "2.28"]
[White "Suliborski, Jakub"]
[Black "Paszewski, Mateusz"]
[Result "1/2-1/2"]
[ECO "D37"]
[WhiteElo "2131"]
[BlackElo "2324"]
[Annotator "NA"]
[PlyCount "33"]
[EventDate "2019.08.05"]
[EventType "swiss"]
[EventCountry "POL"]
[SourceTitle "playchess.com"]
[Source "ChessBase"]
[SourceQuality "1"]
[TimeControl "40/5400+30:1800+30"]

1. d4 Nf6 2. Nf3 d5 3. c4 e6 4. Nc3 dxc4 5. e4 Bb4 6. Bg5 c5 7. Bxc4 cxd4 8. Nxd4 Bxc3+ 9. bxc3 Qa5 10. Bxf6 gxf6 11. O-O Bd7 12. Rb1 Qxc3 13. Nb5 Bxb5 14. Bxb5+ Nc6 15. Qa4 O-O 16. Rfc1 Qe5 17. Bxc6 1/2-1/2

[Event "3rd Memorial Warakomska 2019"]
[Site "Suwalki"]
[Date "2019.08.06"]
[Round "2.29"]
[White "Efroimski, Marsel"]
[Black "Bachor, Tomasz"]
[Result "1-0"]
[ECO "B27"]
[WhiteElo "2318"]
[BlackElo "2022"]
[Annotator "NA"]
[PlyCount "111"]
[EventDate "2019.08.05"]
[EventType "swiss"]
[EventCountry "POL"]
[SourceTitle "playchess.com"]
[Source "ChessBase"]
[SourceQuality "1"]
[TimeControl "40/5400+30:1800+30"]

1. e4 {[%emt 0:01:06]} c5 {[%emt 0:00:00]} 2. Nf3 {[%emt 0:00:03]} g6 {[%emt 0:00:00]} 3. d4 {[%emt 0:01:59]} cxd4 {[%emt 0:00:00]} 4. Qxd4 {[%emt 0:00:46]} Nf6 {[%emt 0:00:00]} 5. Nc3 {[%emt 0:01:02]} Nc6 {[%emt 0:00:06]} 6. Qa4 {[%emt 0:00:26]} d6 {[%emt 0:00:06]} 7. e5 {[%emt 0:01:01]} dxe5 {[%emt 0:00:07]} 8. Nxe5 {[%emt 0:00:03]} Bg7 {[%emt 0:00:09]} 9. Bb5 {[%emt 0:03:24]} O-O {[%emt 0:13:50]} 10. Nxc6 {[%emt 0:00:11]} bxc6 {[%emt 0:00:08]} 11. Bxc6 {[%emt 0:00:04]} Rb8 {[%emt 0:00:50]} 12. O-O {[%emt 0:06:25]} Bf5 {[%emt 0:06:05]} 13. Re1 {[%emt 0:20:10]} Qb6 {[%emt 0:17:02]} 14. Bf3 {[%emt 0:07:11]} e5 {[%emt 0:13:15]} 15. Nd5 {[%emt 0:30:28]} Nxd5 {[%emt 0:21:02]} 16. Bxd5 {[%emt 0:00:02]} Qd4 {[%emt 0:01:03]} 17. c4 {[%emt 0:02:25]} Bd3 {[%emt 0:04:26]} 18. Be3 {[%emt 0:05:35]} Qxb2 {[%emt 0:07:22]} 19. Bxa7 {[%emt 0:08:25]} Rbc8 {[%emt 0:02:21]} 20. Qb3 {[%emt 0:07:47]} e4 {[%emt 0:01:22]} 21. Rac1 {[%emt 0:00:50]} Qxb3 {[%emt 0:04:01]} 22. axb3 {[%emt 0:00:01]} Bb2 {[%emt 0:00:10]} 23. Rcd1 {[%emt 0:00:50]} Rfe8 {[%emt 0:04:36]} 24. f3 {[%emt 0:01:04]} Bc2 {[%emt 0:01:13]} 25. Rd2 {[%emt 0:00:15]} Bc3 {[%emt 0:00:43]} 26. Rxc2 {[%emt 0:00:11]} Bxe1 {[%emt 0:00:05]} 27. fxe4 {[%emt 0:00:23]} Bb4 {[%emt 0:00:45]} 28. Ra2 {[%emt 0:00:26]} Re7 {[%emt 0:00:27]} 29. Bd4 {[%emt 0:00:20]} Kf8 {[%emt 0:01:39]} 30. Ra4 {[%emt 0:00:37]} Bd6 {[%emt 0:00:14]} 31. b4 {[%emt 0:00:49]} f5 {[%emt 0:00:41]} 32. c5 {[%emt 0:01:02]} Be5 {[%emt 0:00:37]} 33. Be3 {[%emt 0:00:34]} fxe4 {[%emt 0:00:38]} 34. b5 {[%emt 0:00:14]} Rd8 {[%emt 0:00:49]} 35. Bxe4 {[%emt 0:00:26]} Rf7 {[%emt 0:00:47]} 36. Bf3 {[%emt 0:00:21]} Kg7 {[%emt 0:00:31]} 37. b6 {[%emt 0:00:24]} Rd3 {[%emt 0:00:31]} 38. Kf2 {[%emt 0:00:55]} Rb3 {[%emt 0:00:16]} 39. Ra7 {[%emt 0:00:40]} Rb2+ {[%emt 0:00:21]} 40. Ke1 {[%emt 0:00:00]} Rb1+ {[%emt 0:00:00]} 41. Kd2 {[%emt 0:01:34]} Rb2+ {[%emt 0:07:55]} 42. Kc1 {[%emt 0:01:51]} Rb4 {[%emt 0:01:34]} 43. Bd5 {[%emt 0:00:46]} Rxa7 {[%emt 0:02:16]} 44. bxa7 {[%emt 0:00:03]} Ra4 {[%emt 0:00:10]} 45. a8=Q {[%emt 0:00:42]} Rxa8 {[%emt 0:00:06]} 46. Bxa8 {[%emt 0:00:04]} Bxh2 {[%emt 0:00:20]} 47. Kd2 {[%emt 0:01:53]} Kf6 {[%emt 0:00:36]} 48. Bh6 {[%emt 0:06:06]} Bg1 {[%emt 0:06:46]} 49. Bf8 {[%emt 0:00:18]} Kf7 {[%emt 0:00:28]} 50. Bd6 {[%emt 0:00:11]} Ke6 {[%emt 0:00:08]} 51. Kd3 {[%emt 0:00:54]} h5 {[%emt 0:00:23]} 52. Ke4 {[%emt 0:00:15]} g5 {[%emt 0:00:53]} 53. Bd5+ {[%emt 0:01:40]} Kd7 {[%emt 0:00:30]} 54. Bf7 {[%emt 0:00:16]} h4 {[%emt 0:00:12]} 55. Kd5 {[%emt 0:00:16]} Kd8 {[%emt 0:01:00]} 56. Be6 {[%emt 0:00:48]} 1-0

[Event "3rd Memorial Warakomska 2019"]
[Site "Suwalki"]
[Date "2019.08.06"]
[Round "2.30"]
[White "Koziol, Kamil"]
[Black "Praczukowski, Stanislaw"]
[Result "1-0"]
[ECO "C77"]
[WhiteElo "2307"]
[BlackElo "2166"]
[Annotator "NA"]
[PlyCount "79"]
[EventDate "2019.08.05"]
[EventType "swiss"]
[EventCountry "POL"]
[SourceTitle "playchess.com"]
[Source "ChessBase"]
[SourceQuality "1"]
[TimeControl "40/5400+30:1800+30"]

1. e4 {[%emt 0:00:00]} e5 {[%emt 0:00:00]} 2. Nf3 {[%emt 0:00:35]} Nc6 {[%emt 0:00:00]} 3. Bb5 {[%emt 0:03:30]} a6 {[%emt 0:01:21]} 4. Ba4 {[%emt 0:00:11]} Nf6 {[%emt 0:04:28]} 5. Bxc6 dxc6 {[%emt 0:01:07]} 6. d3 {[%emt 0:00:57]} Bc5 {[%emt 0:04:19]} 7. Nbd2 {[%emt 0:02:19]} Qe7 {[%emt 0:06:51]} 8. Nc4 {[%emt 0:12:01]} Nd7 {[%emt 0:06:58]} 9. O-O {[%emt 0:03:05]} f6 {[%emt 0:04:04]} 10. Kh1 {[%emt 0:11:45]} Nf8 {[%emt 0:05:08]} 11. Nh4 {[%emt 0:13:55]} Be6 {[%emt 0:06:38]} 12. b3 {[%emt 0:12:49]} g6 {[%emt 0:13:38]} 13. f4 {[%emt 0:08:15]} exf4 {[%emt 0:04:58]} 14. Rxf4 {[%emt 0:06:36]} Bxc4 {[%emt 0:01:46]} 15. bxc4 {[%emt 0:00:51]} g5 {[%emt 0:10:41]} 16. Nf5 {[%emt 0:04:16]} Qe5 {[%emt 0:02:19]} 17. Rb1 {[%emt 0:00:31]} O-O-O {[%emt 0:06:05]} 18. Rf1 {[%emt 0:02:09]} Ne6 {[%emt 0:06:20]} 19. Bb2 {[%emt 0:05:11]} Nd4 {[%emt 0:05:50]} 20. Ne3 {[%emt 0:09:43]} Qe7 {[%emt 0:01:55]} 21. c3 {[%emt 0:00:47]} Ne6 {[%emt 0:01:11]} 22. d4 {[%emt 0:00:40]} Bb6 {[%emt 0:00:39]} 23. Qc2 {[%emt 0:00:48]} Nf4 {[%emt 0:00:25]} 24. c5 {[%emt 0:00:25]} Ba7 {[%emt 0:00:32]} 25. Nf5 {[%emt 0:00:19]} Qe6 {[%emt 0:00:27]} 26. Bc1 {[%emt 0:00:15]} Ng6 {[%emt 0:00:38]} 27. Be3 {[%emt 0:00:46]} Nh4 {[%emt 0:00:34]} 28. Nxh4 {[%emt 0:00:29]} gxh4 {[%emt 0:00:02]} 29. Rf4 {[%emt 0:00:22]} h3 {[%emt 0:00:11]} 30. g3 {[%emt 0:00:43]} Rde8 {[%emt 0:00:34]} 31. c4 {[%emt 0:00:22]} f5 {[%emt 0:00:35]} 32. e5 {[%emt 0:00:01]} Rhf8 {[%emt 0:00:23]} 33. Rbf1 {[%emt 0:00:57]} Rf7 {[%emt 0:01:32]} 34. Rxf5 {[%emt 0:00:40]} Ref8 {[%emt 0:00:06]} 35. g4 {[%emt 0:00:41]} Qg6 {[%emt 0:00:17]} 36. Qe4 {[%emt 0:00:34]} h5 {[%emt 0:00:20]} 37. e6 {[%emt 0:00:26]} Rf6 {[%emt 0:00:46]} 38. e7 {[%emt 0:00:22]} Re8 {[%emt 0:00:04]} 39. gxh5 {[%emt 0:00:35]} Qh7 {[%emt 0:01:05]} 40. Qg4 {[%emt 0:00:00]} 1-0